Cogmind - Beta 15 @@@ ROGUE MODE // 2025.05.28 @ 21:35:42 Player: Nebulae Result: Destroyed by PH-G9G(R) with Subdweller Beam Cannon Performance ------------- Evolutions (0) 0 Regions Visited (3) 600 Robots Destroyed (26) 130 Value Destroyed (603) 603 Prototype IDs (0) 0 Alien Tech Used (0) 0 Bonus (0) 0 TOTAL SCORE: 1333 Bonus ------- None Cogmind --------- Core Integrity 0/250 Matter 282/300 Energy 250/250 System Corruption 0% Temperature Cool (9) Movement Rolling (105) Ox1 Location -10/Subcaves Parts ------- > --- POWER (1) -------- Ion Engine > --- PROPULSION (2) --- Armored Wheel Armored Wheel > --- UTILITY (2) ------ Large Storage Unit > --- WEAPON (2) ------- Shotgun > --- INVENTORY (15) --- Ion Engine Armored Wheel Armored Wheel Improved Heat Sink Medium Storage Unit Structural Scanner Transport Network Coupler Light Armor Plating Hacking Suite Rocket Launcher Mini Grenade Launcher Mini Grenade Launcher Peak State ------------ > --- POWER ------------ Light Ion Engine > --- PROPULSION ------- Armored Wheel Armored Wheel > --- UTILITY ---------- Large Storage Unit Seismic Detector > --- WEAPON ----------- Shotgun Shotgun > --- INVENTORY -------- Ion Engine Armored Wheel Armored Wheel Improved Heat Sink Medium Storage Unit Transport Network Coupler Light Armor Plating Hacking Suite Light Assault Rifle Rocket Launcher Mini Grenade Launcher Mini Grenade Launcher [Rating: 13] Favorites ----------- Power Ion Engine Engine Ion Engine Propulsion Armored Wheel Treads Light Treads Leg Aluminum Leg Wheel Armored Wheel Utility Seismic Detector Device Seismic Detector Storage Large Storage Unit Weapon Shotgun Energy Gun Medium Laser Ballistic Gun Shotgun Launcher Rocket Launcher Build | -11 -10 -10 -10 ------- Run | Yrd Mat Min Sub Slots Evolved . | . . . . Power . | . . . . Propulsion . | . . . . Utility . | . . . . Weapon . | . . . . Parts Attached 21 | 6 13 2 . Power 3 | 1 1 1 . Engine 3 | 1 1 1 . Core . | . . . . Reactor . | . . . . Propulsion 9 | 2 7 . . Treads 4 | 2 2 . . Leg 3 | . 3 . . Wheel 2 | . 2 . . Hover . | . . . . Flight . | . . . . Utility 4 | 1 3 . . Device 1 | . 1 . . Storage 3 | 1 2 . . Processor . | . . . . Hackware . | . . . . Protection . | . . . . Artifact . | . . . . Weapon 5 | 2 2 1 . Energy Gun 1 | 1 . . . Energy Cannon . | . . . . Ballistic Gun 3 | 1 2 . . Ballistic Cannon . | . . . . Launcher 1 | . . 1 . Special Weapon . | . . . . Impact Weapon . | . . . . Slashing Weapon . | . . . . Piercing Weapon . | . . . . Special Melee Weapon . | . . . . Unidentified Prototypes . | . . . . Parts Lost 3 | . . 2 1 Power . | . . . . Propulsion . | . . . . Utility 1 | . . 1 . Weapon 2 | . . 1 1 Highest Loss Streak 2 | . . 2 1 To Critical Strikes . | . . . . Average Backups 9 | 3 7 12 12 Power . | . 1 1 1 Propulsion 2 | 2 3 2 2 Utility 2 | . 1 5 6 Weapon 2 | . 1 3 3 Tool/Special . | . . . . Unused Backups 17 | . 7 . 10 Power 1 | . . . 1 Propulsion 7 | . 5 . 2 Utility 6 | . 1 . 5 Weapon 3 | . 1 . 2 Tool/Special . | . . . . Average Slot Usage (%) 97 | . 98 99 72 Engine 14 | . 14 14 14 Treads 7 | . 12 . . Leg 2 | . 3 . . Wheel 17 | . 12 28 28 Device 12 | . 12 13 . Storage 14 | . 14 14 14 Energy Gun 5 | . 7 . . Ballistic Gun 21 | . 20 25 15 Peak Build Rating 13 | 6 12 13 11 Average Rating 10 | 4 9 12 10 On Entrance 7 | . 6 12 10 Naked Turns . | . . . . Heaviest Build 32 | 13 30 32 28 Greatest Support 40 | 40 40 24 24 Greatest Overweight (x) 4 | . 4 1 1 Average Overweight (x) . | . . 1 1 Largest Inventory Capacity 15 | 8 15 15 15 Average Capacity 11 | 6 10 15 15 Most Carried 14 | 6 11 14 13 Average Carried 9 | 3 7 12 12 Final Capacity 15 | 8 15 15 15 Final Carried 13 | 6 11 13 12 Class Distribution -------------------- 100% | Mutant Dominant Class ---------------- Mutant | -10/Materials Mutant | -10/Mines Mutant | -10/Subcaves Resources | -11 -10 -10 -10 ----------- Run | Yrd Mat Min Sub Matter Collected 661 | 221 340 100 . Remotely . | . . . . Salvage Created 860 | . 793 67 . Parts 38 | . 33 5 . Haulers Intercepted 2 | . 2 . . Recyclers Shooed 3 | . 3 . . Parts Field Recycled . | . . . . Retrieved Matter . | . . . . Parts Self-Destructed . | . . . . Prevented . | . . . . Kills | -11 -10 -10 -10 ------- Run | Yrd Mat Min Sub Combat Hostiles Destroyed 16 | . 14 2 . Melee 1 | . 1 . . Guns 15 | . 13 2 . Classes Destroyed 7 | . 7 . . Worker 2 | . 2 . . Hauler 2 | . 2 . . Recycler 2 | . 2 . . Operator 1 | . 1 . . Watcher 3 | . 3 . . Swarmer 3 | . 3 . . Grunt 13 | . 11 2 . Best Kill Streak 4 | . 4 2 . Combat Bots Only 3 | . 3 2 . Max Kills in Single Turn 2 | . 2 1 . Gunslinging . | . . . . Exploded . | . . . . Melee 1 | . 1 . . Uniques/NPCs Destroyed . | . . . . Combat | -11 -10 -10 -10 -------- Run | Yrd Mat Min Sub Hostile Shots Fired 81 | . 59 16 6 Missed 19 | . 14 3 2 Hits 62 | . 45 13 4 Projectile 62 | . 45 13 4 AOE 9 | . . 9 . Damage Taken 1096 | . 564 419 113 Core 270 | . 130 82 58 Absorbed by Shields . | . . . . Regen/Repaired (Parts) 9 | . 9 . . Core Remaining (%) 100 | 100 . . . Volleys Fired 81 | 6 67 5 3 Largest 2 | 1 2 2 2 Hottest 70 | 20 70 46 43 Shots Fired 154 | 6 134 10 4 Gun 154 | 6 134 10 4 Cannon . | . . . . Launcher . | . . . . Special . | . . . . Kinetic 100 | 6 80 10 4 Thermal 54 | . 54 . . Explosive . | . . . . Electromagnetic . | . . . . Robot Hit Streak 13 | 2 13 4 9 Robot Miss Streak 4 | 3 4 3 . Penetration Max . | . . . . Secondary Targets 3 | . 3 . . Max Gunslinging Chain 1 | . 1 . . Shots Hit Robots 95 | 3 82 6 4 Core Hits 54 | . 49 5 . Critical Kills . | . . . . Critical Parts Destroyed . | . . . . Critical Strikes 4 | . 4 . . Burn 4 | . 4 . . Melee Attacks . | . . . . Impact . | . . . . Slashing . | . . . . Piercing . | . . . . Sneak Attacks . | . . . . Combat Hostiles . | . . . . Follow-up Attacks . | . . . . Damage Inflicted 1109 | 26 1006 77 . Guns 1074 | 26 971 77 . Cannons . | . . . . Explosions . | . . . . Melee . | . . . . Ramming 35 | . 35 . . Kinetic 625 | 26 522 77 . Thermal 449 | . 449 . . Explosive . | . . . . Electromagnetic . | . . . . Impact . | . . . . Slashing . | . . . . Piercing . | . . . . Highest Corruption . | . . . . Average Corruption . | . . . . Corruption Purged . | . . . . Corruption Blocked . | . . . . Overload Shots . | . . . . Overflow Damage . | . . . . Projectiles . | . . . . Explosions . | . . . . Melee . | . . . . Knockbacks . | . . . . Impact . | . . . . Kinetic . | . . . . Secondary . | . . . . Self-Inflicted Damage 27 | . 27 . . Shots 1 | . 1 . . Rammed 14 | . 14 . . Targets Rammed 15 | . 15 . . Kicked . | . . . . Crushed 1 | . 1 . . Highest Temperature 237 | . 237 4 . Average Temperature 54 | . 55 2 . Received Heat Transfer 339 | . 273 30 36 Siege Activations . | . . . . Martial Activations . | . . . . Shielding Activations . | . . . . Robots Disrupted . | . . . . Combat Hostiles . | . . . . Robots Corrupted . | . . . . Combat Hostiles . | . . . . Parts Fried . | . . . . Impact Corruptions . | . . . . Robots Melted . | . . . . Combat Hostiles . | . . . . Parts Melted 1 | . 1 . . Heat Transferred 1628 | . 1628 . . Parts Sabotaged . | . . . . Parts Stolen . | . . . . Parts Stripped . | . . . . Power Chain Reactions . | . . . . Alert | -11 -10 -10 -10 ------- Run | Yrd Mat Min Sub Maximum Alert Level . | . . . . Low Security (%) 100 | 100 100 100 . Level 1 . | . . . . Level 2 . | . . . . Level 3 . | . . . . Level 4 . | . . . . Level 5 . | . . . . High Security . | . . . . Max Security . | . . . . Peak Influence 118 | . 118 40 . Initial . | . . . . Average 24 | . 35 2 . Influence Increases 480 | . 430 50 . Destroy 0b10 Robot/C 320 | . 280 40 . Destroy 0b10 Robot/NC 50 | . 50 . . Destroy Leader 80 | . 70 10 . Successful Hack 14 | . 14 . . Disable Machine 15 | . 15 . . Destroy Structure 1 | . 1 . . Influence Decreases 480 | . 430 50 . Time Decay 480 | . 430 50 . Squads Dispatched 4 | . 4 . . Investigation 2 | . 2 . . Extermination . | . . . . Reinforcement 2 | . 2 . . Assault . | . . . . Garrison . | . . . . Intercept . | . . . . Searches Triggered . | . . . . Construction Impeded . | . . . . Haulers Reinforced . | . . . . Active Scanning Responses . | . . . . Cargo Convoy Interrupts . | . . . . Stealth | -11 -10 -10 -10 --------- Run | Yrd Mat Min Sub Distress Signals 1 | . 1 . . Communications Jammed . | . . . . Distress Signals . | . . . . Times Spotted 32 | . 27 4 1 Peak Tracking Total 5 | . 5 2 1 Tactical Retreats . | . . . . Traps | -11 -10 -10 -10 ------- Run | Yrd Mat Min Sub Traps Triggered 3 | . 3 . . Indirectly . | . . . . Trap Hack Attempts . | . . . . Triggered . | . . . . Disarmed . | . . . . Reprogrammed . | . . . . Reused . | . . . . Traps Extracted . | . . . . Installed . | . . . . Triggered . | . . . . Machines | -11 -10 -10 -10 ---------- Run | Yrd Mat Min Sub Machines Disabled 1 | . 1 . . Max in Single Turn 1 | . 1 . . Machines Repaired . | . . . . Machines Dismantled . | . . . . Machines Sabotaged . | . . . . Overloaded Fab Kills . | . . . . Hacking | -11 -10 -10 -10 --------- Run | Yrd Mat Min Sub Machines Accessed 9 | . 9 . . Terminals 6 | . 6 . . Fabricators . | . . . . Repair Stations 1 | . 1 . . Recycling Units 2 | . 2 . . Scanalyzers . | . . . . Garrison Access . | . . . . Total Hacks 22 | . 22 . . Successful 11 | . 11 . . Failed 11 | . 11 . . Catastrophic 2 | . 2 . . Database Lockouts . | . . . . Manual 17 | . 17 . . Terminals 14 | . 14 . . Fabricators . | . . . . Repair Stations 3 | . 3 . . Recycling Units 5 | . 5 . . Scanalyzers . | . . . . Garrison Access . | . . . . Terminal Hacks 1 | . 1 . . Branch Access Points 1 | . 1 . . Fabricator Hacks . | . . . . Repair Station Hacks 2 | . 2 . . Scan Component 1 | . 1 . . Repair 1 | . 1 . . Recycling Unit Hacks 2 | . 2 . . Report Inventory 2 | . 2 . . Scanalyzer . | . . . . Garrison Access Hacks . | . . . . Unauthorized Hacks 6 | . 6 . . Terminals 4 | . 4 . . Track 3 | . 3 . . Botnet 1 | . 1 . . Fabricators . | . . . . Repair Stations . | . . . . Recycling Units 2 | . 2 . . Reject 2 | . 2 . . Scanalyzers . | . . . . Garrison Access . | . . . . Data Cores Recovered . | . . . . Used . | . . . . Hacking Detections 8 | . 8 . . Full Trace Events . | . . . . Feedback Events . | . . . . Feedback Blocked . | . . . . Robot Schematics Acquired . | . . . . Robots Built . | . . . . Authchips . | . . . . Time . | . . . . Total Robot Build Rating . | . . . . Part Schematics Acquired . | . . . . Parts Built . | . . . . Authchips . | . . . . Time . | . . . . Total Part Build Rating . | . . . . Parts Repaired 1 | . 1 . . Time 26 | . 26 . . Parts Recycled . | . . . . Recycled Matter . | . . . . Retrieved Matter . | . . . . Retrieved Components . | . . . . Parts Scanalyzed . | . . . . Part Schematics Acquired . | . . . . Parts Damaged . | . . . . Bothacking | -11 -10 -10 -10 ------------ Run | Yrd Mat Min Sub Used RIF Installer . | . . . . Robots Hacked . | . . . . Non-combat . | . . . . Combat . | . . . . Robot Hacks Applied . | . . . . Relay Couplers Released . | . . . . Fabnet Peak Effective % . | . . . . Robots Rewired . | . . . . Allies Hacked . | . . . . Hacks Repelled . | . . . . Allies | -11 -10 -10 -10 -------- Run | Yrd Mat Min Sub Total Allies . | . . . . Largest Group . | . . . . Highest-Rated Group . | . . . . Highest-Rated Ally . | . . . . Total Orders . | . . . . Ally Attacks . | . . . . Total Damage . | . . . . Kills . | . . . . Allies Corrupted . | . . . . Allies Melted . | . . . . Intel | -11 -10 -10 -10 ------- Run | Yrd Mat Min Sub Active Infowar (turns) 1816 | . 1228 588 . Seismic 1816 | . 1228 588 . Robot Analysis Total . | . . . . Derelict Logs Recovered 2 | . . 2 . Drone Launches . | . . . . Drone Recoveries . | . . . . Exploration | -11 -10 -10 -10 ------------- Run | Yrd Mat Min Sub Turns Passed 2171 | 98 1375 597 101 Spaces Moved 1521 | 47 855 536 83 Core 4 | 2 2 . . Treads 301 | 45 256 . . Legs 103 | . 103 . . Wheels 1113 | . 494 536 83 Hover . | . . . . Flight . | . . . . Fastest Speed 50 | 50 90 105 105 Average Speed 115 | 155 120 105 105 Slowest Speed 250 | 160 250 105 105 Overloaded Moves . | . . . . Propulsion Burnouts . | . . . . Robots Hopped . | . . . . Potential Cave-ins . | . . . . Cave-ins Triggered . | . . . . Exploration Rate (%) 47 | 4 94 84 7 Regions Visited 3 Branch Regions 2 Pre-discovered Areas 3 | . . 2 1 Known Exits Taken 1 | . 1 . . Unknown Exits Taken 2 | 1 . 1 . Scrap Searched 1 | . . 1 . Spaces Dug . | . . . . Terrain Destroyed . | . . . . Melee . | . . . . Projectile . | . . . . AOE . | . . . . Terrain Rammed . | . . . . Walls Destroyed . | . . . . Machines Disabled . | . . . . Actions | -11 -10 -10 -10 --------- Run | Yrd Mat Min Sub Total 1785 | 64 1068 559 94 Wait 105 | . 85 13 7 Move 1518 | 46 854 535 83 Hop . | . . . . Pick Up 20 | 6 12 2 . Fast Attach 18 | 6 12 . . Attach 1 | . . . 1 Detach . | . . . . Swap 8 | . 5 3 . Drop 19 | . 18 1 . Fire 81 | 6 67 5 3 Melee . | . . . . Ram . | . . . . Kick . | . . . . Crush 15 | . 15 . . Escape Stasis . | . . . . Rewire . | . . . . Trap . | . . . . Miscellaneous . | . . . . Route ------- -11/Scrapyard -10/Materials (discovered 5 exits: [*Mat x3] / *Min / [*Sub]) -10/Mines (discovered 3 exits: [*Mat x2] / [*Sub]) -10/Subcaves History --------- Turn | Location | Event 6 | -11/Scrapyard | Discovered new exit (range 15) 99 | -11/Scrapyard | Entered Materials 209 | -10/Materials | Discovered new exit (range 14) 317 | -10/Materials | Build established: Mutant 533 | -10/Materials | Discovered new exit (range 8) 807 | -10/Materials | Discovered new exit (range 10) 824 | -10/Materials | Discovered new exit (range 16) 886 | -10/Materials | Identified exit to Mines 1067 | -10/Materials | Discovered new exit (range 16) 1193 | -10/Materials | Core integrity fell below 50% 1304 | -10/Materials | Repaired Seismic Detector 1474 | -10/Materials | Entered Mines 1481 | -10/Mines | Received a Rocket Launcher from a helpful Derelict 1527 | -10/Mines | Discovered new exit (range 14) 1619 | -10/Mines | Assembled infested the area 1753 | -10/Mines | Discovered new exit (range 11) 2040 | -10/Mines | Discovered new exit (range 3) 2069 | -10/Mines | Core integrity fell below 20% 2071 | -10/Mines | Entered Subcaves 2113 | -10/Subcaves | Learned location of Zion (-7) 2113 | -10/Subcaves | Met a Zionite searching for "candidates" 2172 | -10/Subcaves | Destroyed by PH-G9G(R) with Subdweller Beam Cannon Last Messages --------------- 02057_ C-30 ARC bursts open, deploying its payload. 02057_ D-53 Grenadier unfolds itself. 02060_ U-05 Engineer lays Concrete. 02062_ Seismic Detector destroyed. 02062_ U-05 Engineer lays Concrete. 02064_ U-05 Engineer builds a Wall. 02065_ The unstable cave ceiling collapses. 02068_ Shotgun destroyed. 02068_ U-05 Engineer builds a Wall. 02069_ The unstable cave ceiling collapses. LOCATION=UNKNOWN AMBIENT_HEAT=-10 GOAL=ESCAPE 02090_ UL-6UA(z): "She is not going to be happy we haven't found any suitable candidates yet." 02113_ UL-6UA(z): "Hey you! It's really dangerous down here, I feel that you could die at any moment. For your health and safety might I suggest a trip to Zion?" World map updated: -7/Zion. 02168_ Lgt. Assault Rifle destroyed. Map ----- +----------------------------------------------------+ | ?????????????????????????????????????????????????? | | ?????????????????????????????????????????????????? | | ?????????????????????????????????????????????????? | | ?????????????????????????????????????????????????? | | ?????????????????????????????????????????????????? | | ?????????????????????????????????????????????????? | | ??????????????????????????????###????????????????? | | ???????????????????????????#### ##????####???????? | | ???????????????????????????# #?#### ########? | | ???????????????????????????# ### ## # #? | | ???????????????????????????# #? | | ???????????????????????????## ## | | ????????????????????????????## ###### ## ## | | ?????????????????????????????# #????# ### | | ?????????????????????????????# ##???# ## | | ???????????????????????????#### ##??# # ## | | ??????????????????????????## ### ##?# ## | | ?????????????????????????## ## #?# ## | | ?????????????????????????# #?## ## ## | | ?????????????????????????# #?## # | | ?????????????????????????# ###### ## # | | ?????????????????????????# #????# ## | | ?????????????????????????## ###### ## # | | ???????????????????????##?## ##### # | | ??????????????????????## ##### #??? # | | ??????????????????????# @#### ##???# # | | ??????????????????????# ## ##???? ## | | ?????????????????????# ## R #### #????? ? | | ????????????????????# ??### ##??## #????? | | ????????????????????#?????####????## #????? | | ???????????????????????????????????# #???? | | ???????????????????????????????????##""#???? | | ????????????????????????????????????#%= #??? | | ?????????????????????????????????????* #??# | | ?????????????????????????????????????% ""#???# ? | | ?????????????????????????????????????!"""????????? | | ????????????????????????????????????? "?????????? | | ????????????????????????????????????? #??????????? | | ?????????????????????????????????????????????????? | | ?????????????????????????????????????????????????? | | ?????????????????????????????????????????????????? | | ?????????????????????????????????????????????????? | | ?????????????????????????????????????????????????? | | ?????????????????????????????????????????????????? | | ?????????????????????????????????????????????????? | | ?????????????????????????????????????????????????? | | ?????????????????????????????????????????????????? | | ?????????????????????????????????????????????????? | | ?????????????????????????????????????????????????? | | ?????????????????????????????????????????????????? | +----------------------------------------------------+ Best States ------------- Heat Dissipation 25 Energy Generation 10 Energy Capacity 250 Matter Stores 300 Matter Capacity 300 Sight Range 16 Terrain Scan Density 10 Evasion (%) 55 Recoil Reduction 2 Item Schematics ----------------- None Robot Schematics ------------------ None Fabricated ------------ Nothing Repaired ---------- Seismic Detector | 55% | -10/Materials Alien Tech Used ----------------- None Achievements -------------- Fist Fight Challenges ------------ None Game ------ Seed ConstructNovaDatajack Manual? 0 Play Time 00:24:00 Cumulative 23.8 hours Start 2025.05.28 @ 18:24:39 End 2025.05.28 @ 21:35:42 Sessions 2 Manual Loads 0 Difficulty Rogue Special Mode None Game No. 18 Rogue 18 Adventurer 0 Explorer 0 Win Type - Total 0 Types 0/0/0/0/0/0/0/0/0/0 Lore% 22 Gallery% 16 Achievement% 19 Wizard Run 0 Options --------- Layout 0 ASCII 0 Keyboard 0 Movement Arrows Keybinds 0 Fullscreen 1 Font 18/SmallcapsGlow Map View 76x50 Zoom Use 0% Tactical HUD 1 Map Filters NONE Filters NONE Steam X RUN: 362116ed-e72d-48df-bfad-773bfbf0e526